bitfinex/quotes_ETHUSD_20260227
["timestamp","ask_amount","ask_price","bid_price","bid_amount"]
[1772220347888,0.45779786,1922.4,1922.0,1.30334404]
[1772220348785,0.45779786,1922.4,1922.3,0.0011]
[1772220349999,1.75825562,1922.4,1922.3,0.0011]
[1772220350203,0.45779786,1922.3,1922.0,0.00263886]
[1772220350776,0.45779786,1922.3,1921.8,0.0011]
[1772220352310,0.45779786,1922.1,1921.8,0.0011]
[1772220354208,0.4430882,1922.4,1921.8,0.47700277]
[1772220354417,0.4430882,1922.4,1921.9,1.77669885]
[1772220354418,1.74354895,1922.4,1921.9,1.77669885]
[1772220354910,0.4430875,1922.3,1921.9,1.77669885]
[1772220355089,0.4430875,1922.3,1921.8,1.30191312]
[1772220357826,1.30053075,1922.3,1921.8,1.30191312]
[1772220357993,0.44308542,1922.2,1921.8,1.30191312]
[1772220358618,0.44308542,1922.2,1921.8,0.0011]
[1772220359905,0.44308407,1922.0,1921.8,0.0011]
[1772220360798,0.44308407,1922.0,1921.6,0.0011]
[1772220361523,0.44198276,1921.8,1921.4,0.0011]
[1772220362023,0.44198276,1921.6,1921.4,0.0011]
[1772220363122,0.44198211,1921.8,1921.4,0.47700277]
[1772220363522,3.45033263,1922.4,1921.4,0.47700277]
[1772220363523,0.44198147,1922.3,1921.6,0.47590277]
[1772220364222,1.7425124,1922.3,1921.8,0.47590277]
[1772220364400,0.44198147,1922.2,1921.7,1.30093146]
[1772220364724,0.44198147,1922.2,1921.7,1.77683423]
[1772220367140,1.74258684,1922.2,1921.7,1.77683423]
[1772220367516,0.44198147,1922.2,1921.7,1.77683423]
[1772220367837,0.44197899,1922.1,1921.7,1.30093146]
[1772220368031,0.44197899,1922.1,1921.7,1.77683423]
[1772220368543,1.30043326,1922.5,1921.8,0.47590277]
[1772220368759,0.44197839,1922.4,1921.8,0.47590277]
[1772220370244,1.74246889,1922.4,1921.9,1.30079608]
[1772220371814,1.74246889,1922.4,1921.9,1.79472175]
[1772220374851,0.44197436,1922.5,1922.0,0.49392567]
[1772220375046,0.001,1922.3,1922.0,0.49392567]
[1772220377063,0.001,1922.3,1922.0,1.79461164]
[1772220379751,0.001,1922.3,1922.0,0.49392567]
[1772220380564,0.44297167,1922.3,1922.0,0.49392567]
[1772220381252,0.44197115,1922.2,1921.7,1.30202203]
[1772220381563,0.44197115,1922.2,1921.7,1.7959477]
[1772220381763,0.44197115,1922.2,1921.8,0.49392567]
[1772220383365,1.74258691,1922.2,1921.8,0.49392567]
[1772220383663,1.74258691,1922.2,1921.8,1.7947832]
[1772220383865,1.74258691,1922.2,1921.8,0.49392567]
[1772220384960,0.44197115,1922.2,1921.8,1.79478228]
[1772220386362,0.001,1922.3,1921.9,0.49392567]
[1772220386765,0.001,1922.6,1922.1,0.49392567]
[1772220387674,0.00153886,1923.0,1922.3,0.49392567]
[1772220387884,0.00153886,1923.0,1922.5,0.49392567]
[1772220388645,0.00153886,1923.0,1922.7,0.49392567]
[1772220390874,0.00153886,1923.0,1922.7,1.79413629]
[1772220392065,0.44450468,1923.0,1922.6,1.30027002]
[1772220392276,0.44450468,1923.0,1922.1,3.3345864]
[1772220393184,0.44296537,1922.8,1922.1,3.3345864]
[1772220395362,0.44296405,1922.6,1922.1,3.3345864]
[1772220397289,0.44296405,1922.6,1922.0,1.3006955]
[1772220397481,0.44296319,1922.4,1922.0,1.3006955]
[1772220397683,0.44296319,1922.4,1922.0,1.79462117]
[1772220398390,1.74334176,1922.6,1922.1,0.49392567]
[1772220398892,1.74334176,1922.6,1922.2,0.0011]
[1772220400691,0.44296113,1922.5,1922.2,0.0011]
[1772220402175,0.44296113,1922.5,1922.2,0.47161641]
[1772220402776,1.7433533,1922.5,1922.2,0.47161641]
[1772220402973,0.44296113,1922.5,1922.2,0.0011]
[1772220403174,0.44296034,1922.7,1922.2,0.47161641]
[1772220403789,0.44296034,1922.7,1922.2,0.0011]
[1772220404297,0.44295995,1922.5,1922.2,0.0011]
[1772220406311,0.44295995,1922.5,1922.2,0.47161641]
[1772220408302,0.44295844,1922.6,1922.2,1.77218708]
[1772220408476,0.001,1922.9,1922.3,0.47051641]
[1772220411394,0.001,1922.9,1922.4,1.30045776]
[1772220411704,0.001,1922.9,1922.5,0.47051641]
[1772220412291,0.001,1922.8,1922.5,0.47051641]
[1772220414523,0.00153886,1923.0,1922.8,0.47051641]
[1772220416511,0.00153886,1923.0,1922.7,0.47051641]
[1772220420435,0.00153886,1923.0,1922.8,0.47051641]
[1772220420844,0.00153886,1923.0,1922.8,1.77067967]
[1772220422206,0.00153886,1923.0,1922.8,0.47051641]
[1772220422413,0.44549222,1923.0,1922.6,0.47051641]
[1772220422725,0.00153886,1923.0,1922.7,0.47051641]
[1772220423145,0.46995024,1923.3,1922.7,0.47051641]
[1772220423427,0.02599688,1923.3,1922.7,0.47051641]
[1772220423725,1.77134248,1923.3,1922.7,0.47051641]
[1772220423912,1.77133955,1923.3,1922.7,0.47051641]
[1772220424530,0.001,1922.9,1922.7,0.47051641]
[1772220425450,0.001,1922.9,1922.8,1.30018722]
[1772220425648,0.02599688,1923.3,1922.9,0.47051641]
[1772220426651,1.30091515,1924.0,1923.1,0.47051641]
[1772220426830,0.44549101,1923.9,1923.1,0.47051641]
[1772220427753,0.02599688,1923.8,1923.3,0.47051641]
[1772220430355,0.02599688,1923.8,1923.4,1.77591746]
[1772220431351,0.02599688,1923.8,1923.5,0.47613583]
[1772220432460,0.02599688,1923.8,1923.5,1.77584248]
[1772220432639,0.00153886,1924.0,1923.6,0.47613583]
[1772220433557,1.633,1924.8,1923.8,0.47613583]
[1772220433760,0.47148562,1924.7,1923.8,0.47613583]
[1772220434942,0.47148536,1924.5,1924.0,0.47613583]
[1772220435260,0.47148536,1924.7,1924.0,0.47613583]
[1772220435962,0.47148509,1924.9,1924.1,0.47613583]
[1772220436151,1.3002667,1925.0,1924.2,0.47613583]
[1772220436152,0.00153886,1925.0,1924.2,0.47613583]
[1772220436330,0.00153886,1925.0,1924.5,0.47613583]
[1772220436532,0.47302369,1925.0,1924.5,0.47613583]
[1772220436740,0.00153886,1925.0,1924.5,0.47613583]
[1772220437164,0.00153886,1925.0,1924.7,0.47613583]
[1772220439757,0.00153886,1925.0,1924.5,1.7751352]
[1772220439952,0.00153886,1925.0,1924.6,0.47613583]
[1772220442170,0.47302242,1925.0,1924.3,0.47613583]
[1772220443679,0.00153886,1925.0,1924.3,0.47613583]
[1772220444091,0.00153886,1925.0,1924.4,0.47613583]
[1772220445193,0.47302169,1925.0,1924.2,1.77531943]
[1772220445412,2.46141507,1924.9,1923.8,0.47613583]
[1772220445577,0.4714826,1924.6,1923.9,0.47613583]
[1772220445765,0.4714826,1924.6,1923.8,1.29945995]
[1772220445969,0.4714826,1924.6,1923.9,0.47613583]
[1772220446182,0.4714826,1924.4,1923.9,1.7755482]
[1772220447795,0.4714826,1924.4,1924.0,0.47613583]
[1772220448201,0.4714826,1924.4,1924.0,1.77547317]
[1772220448403,1.29905361,1924.5,1923.8,1.77564721]
[1772220448404,0.47148213,1924.3,1923.8,1.77564721]
[1772220448591,0.47148213,1924.3,1923.8,1.29951138]
[1772220448797,0.47148213,1924.3,1923.9,0.47613583]
[1772220448998,1.77056442,1924.5,1924.1,0.0011]
[1772220449526,0.4714819,1924.5,1924.1,0.0011]
[1772220450313,0.47148168,1924.4,1924.1,0.0011]
[1772220453317,1.29892583,1924.7,1924.1,0.0011]
[1772220455236,1.627,1924.8,1924.2,0.50000971]
[1772220455533,2.925889,1924.8,1924.3,0.50000971]
[1772220455736,3.41741559,1924.8,1924.3,0.50000971]
[1772220455939,2.925889,1924.8,1924.3,0.50000971]
[1772220456435,1.298889,1924.8,1924.3,0.50000971]
[1772220457846,1.298889,1924.8,1924.2,0.50000971]
[1772220458852,1.29977134,1924.9,1924.2,0.50000971]
[1772220459148,0.001,1924.9,1924.2,0.50000971]
[1772220459537,0.001,1924.9,1924.4,0.50000971]
[1772220462715,0.001,1924.9,1924.5,0.50000971]
[1772220465452,0.001,1924.9,1924.5,1.79903959]
[1772220465648,0.001,1924.9,1924.6,0.50000971]
[1772220466247,0.001,1924.9,1924.4,1.79905459]
[1772220466854,0.001,1924.9,1924.2,1.5481]
[1772220466855,0.001,1924.9,1924.2,1.80033786]
[1772220467048,0.001,1924.9,1924.3,0.50000971]
[1772220467554,1.29976876,1924.9,1924.3,0.50000971]
[1772220468250,0.001,1924.9,1924.4,0.50000971]
[1772220470432,0.001,1924.9,1924.2,0.50110971]
[1772220470761,0.001,1924.9,1924.3,0.50000971]
[1772220473230,2.45758971,1924.7,1924.2,0.0011]
[1772220473436,2.45858971,1924.9,1924.2,0.0011]
[1772220474456,1.29883624,1924.8,1924.2,0.0011]
[1772220475766,1.62753886,1925.0,1924.3,3.377242]
[1772220475970,0.1158094,1925.2,1924.8,0.50000971]
[1772220476337,0.1158094,1925.2,1924.8,1.79884399]
[1772220476944,0.1158094,1925.2,1924.9,0.50000971]
[1772220477550,0.1158094,1925.2,1924.7,1.79886157]
[1772220478362,0.1158094,1925.2,1924.7,1.7989078]
[1772220478682,0.1158094,1925.2,1924.8,0.50000971]
[1772220480374,0.1158094,1925.2,1924.8,1.79882184]
[1772220480580,0.1158094,1925.2,1924.8,0.50000971]
[1772220481148,1.41438916,1925.2,1924.3,1.30024527]
[1772220481368,1.41438916,1925.2,1924.4,0.50000971]
[1772220481894,5.06625829,1925.1,1924.2,0.0011]
[1772220482469,1.29870129,1925.0,1924.2,0.0011]
[1772220482869,1.625,1924.9,1924.2,0.50110971]
[1772220483271,2.36238848,1924.9,1924.2,0.0011]
[1772220484085,1.29870129,1925.0,1924.3,0.50000971]
[1772220484379,1.29868692,1925.1,1924.6,0.50000971]
[1772220486395,1.626,1925.0,1924.3,0.50000971]
[1772220486572,1.29876876,1924.9,1924.4,0.50000971]
[1772220488599,1.29876876,1924.9,1924.4,0.50110971]
[1772220488996,1.29876876,1924.9,1924.2,0.0011]
[1772220489186,1.29876876,1924.9,1924.3,0.0011]
[1772220490082,1.29876876,1924.9,1924.1,0.0011]
[1772220491799,3.43964526,1924.7,1924.1,0.0011]
[1772220492005,1.629,1924.6,1924.1,0.0011]
[1772220492177,1.629,1924.6,1924.0,0.00263886]
[1772220493507,1.29903871,1924.5,1923.8,0.50000971]
[1772220494180,0.47472243,1924.4,1923.5,0.45675282]
[1772220495410,1.77389615,1924.3,1923.5,0.45675282]
[1772220495796,1.77389615,1924.3,1923.5,1.75646025]
[1772220496003,1.77389615,1924.3,1923.6,0.45675282]
[1772220496392,1.29917372,1924.3,1923.6,0.45675282]
[1772220496594,0.47472243,1924.1,1923.2,0.45675282]
[1772220497988,1.29937629,1924.0,1923.3,0.45675282]
[1772220501438,1.77408431,1924.1,1923.5,0.45675282]
[1772220502349,0.001,1924.0,1923.5,0.45675282]
[1772220504831,0.47572243,1924.0,1923.3,0.45675282]
[1772220506740,1.29944383,1923.9,1923.4,1.75653445]
[1772220506944,1.29944383,1923.9,1923.5,0.45675282]
[1772220508442,1.30038054,1924.0,1923.5,0.45675282]
[1772220508647,1.30038054,1924.0,1923.6,0.45675282]
[1772220509831,0.001,1924.0,1923.6,0.45675282]
[1772220510915,0.001,1924.0,1923.7,0.45675282]
[1772220511752,0.001,1924.0,1923.4,0.45675282]
[1772220511753,0.47572243,1924.0,1923.4,0.45675282]
[1772220511917,0.47572243,1924.0,1923.2,0.45785282]
[1772220513142,0.47472243,1923.8,1923.2,0.45785282]
[1772220514636,0.47472243,1923.7,1923.0,0.45939168]
[1772220515126,0.47472243,1923.5,1923.0,0.00263886]
[1772220516261,0.47472243,1923.5,1923.0,0.45939168]
[1772220517361,1.29978163,1923.4,1923.0,0.45939168]
[1772220518261,0.47572243,1924.0,1923.0,0.45939168]
[1772220518472,1.29944383,1923.9,1923.2,0.45675282]
[1772220518629,1.77416626,1923.9,1923.2,0.45675282]
[1772220519762,0.45813134,1923.8,1923.3,0.46007738]
[1772220522165,1.29957893,1923.7,1923.3,0.46007738]
[1772220522365,1.16179875,1923.7,1923.3,0.46007738]
[1772220523039,1.30038312,1924.0,1923.4,0.49775669]
[1772220523240,1.78694684,1924.0,1923.4,0.49775669]
[1772220525852,0.001,1923.9,1923.4,0.49775669]
[1772220526079,0.48756372,1923.9,1923.4,0.49775669]
[1772220526271,1.29951138,1923.8,1923.4,0.49775669]
[1772220527044,1.78700755,1923.9,1923.4,1.7975303]
[1772220527844,1.78700755,1923.9,1923.4,0.49775669]
[1772220529762,0.48656372,1923.8,1923.3,0.0011]
[1772220530352,1.29957893,1923.7,1923.3,0.49885669]
[1772220531574,1.78614265,1923.7,1923.3,0.0011]
[1772220533375,1.78614265,1923.7,1923.3,0.49885669]
[1772220533975,1.29957893,1923.7,1923.3,0.49885669]
[1772220534772,1.29954349,1923.8,1923.4,0.49775669]
[1772220537881,1.29954349,1923.8,1923.4,1.79753807]
[1772220538087,1.29954349,1923.8,1923.5,0.49775669]
[1772220539668,1.29954349,1923.8,1923.5,0.49885669]
[1772220539993,0.001,1923.7,1923.5,0.49885669]
[1772220541072,0.48756372,1923.7,1923.4,0.0011]
[1772220541276,1.638,1923.6,1923.2,0.0011]
[1772220541604,0.48656372,1923.5,1923.0,0.00263886]
[1772220541759,0.48656372,1923.3,1923.0,0.00263886]
[1772220543864,1.2999168,1923.2,1923.0,0.00263886]
[1772220544890,1.78648052,1923.2,1923.0,0.00263886]
[1772220545779,0.48656372,1923.1,1923.0,0.00263886]
[1772220546199,1.78654812,1923.1,1922.8,0.0011]
[1772220546620,1.78651855,1923.2,1922.8,0.49885669]
[1772220546785,0.48656372,1923.1,1922.8,0.0011]
[1772220547606,1.29995483,1923.2,1922.8,0.0011]
[1772220548108,1.29995483,1923.2,1922.8,0.49885669]
[1772220549407,1.78651855,1923.2,1922.8,0.49885669]
[1772220550003,3.43337329,1923.4,1922.9,0.49775669]
[1772220550509,0.47280952,1923.3,1922.9,0.49775669]
[1772220552401,1.2999168,1923.2,1922.9,0.49775669]
[1772220553827,1.2999168,1923.2,1923.0,0.0011]
[1772220555211,1.2999168,1923.2,1923.0,0.48167968]
[1772220555425,1.29989749,1923.3,1923.0,0.48167968]
[1772220558033,1.77270701,1923.3,1923.0,0.48167968]
[1772220559234,2.95278163,1923.4,1923.0,0.48167968]
[1772220559640,3.42559115,1923.4,1923.0,0.48167968]
[1772220560681,0.47280952,1923.0,1922.9,0.0011]
[1772220560973,0.47280952,1923.2,1922.9,0.48167968]
[1772220561562,1.77359115,1923.4,1922.9,0.48167968]
[1772220561758,3.43259115,1923.4,1922.9,0.48167968]
[1772220561958,0.47280952,1923.3,1922.9,0.48167968]
[1772220566468,1.2999168,1923.2,1923.0,0.0011]
[1772220566846,1.3009168,1923.2,1923.0,0.0011]
[1772220568278,0.47280952,1923.1,1923.0,0.0011]
[1772220568748,1.77279392,1923.1,1923.0,0.0011]
[1772220568945,0.47280952,1923.0,1922.9,0.0011]
[1772220570261,0.47280952,1923.0,1922.8,0.0011]
[1772220571184,1.7729286,1923.0,1922.8,0.0011]
[1772220574993,0.47280952,1922.9,1922.6,0.0011]
[1772220575181,0.47280952,1922.6,1922.3,0.0011]
[1772220575367,0.9651106,1922.5,1922.3,0.0011]
[1772220575582,0.47280952,1922.5,1922.3,0.0011]
[1772220575904,0.9651106,1922.4,1922.1,0.48057968]
[1772220576110,0.47280952,1922.4,1922.1,0.48057968]
[1772220576313,1.30052541,1922.3,1922.1,0.48057968]
[1772220578502,1.30045776,1922.4,1922.1,0.48057968]
[1772220579306,1.30045776,1922.4,1922.3,0.48167968]
[1772220580212,1.30045776,1922.4,1922.2,0.48578572]
[1772220581617,1.80045971,1922.4,1922.1,0.0011]
[1772220581910,1.30045776,1922.4,1922.1,0.0011]
[1772220585741,1.80045971,1922.4,1922.1,0.0011]
[1772220585941,0.50000195,1922.2,1921.9,0.0011]
[1772220586094,0.50000195,1922.3,1921.9,0.0011]
[1772220587411,2.18300195,1922.2,1921.9,0.0011]
[1772220588123,2.98360476,1922.2,1921.9,0.0011]
[1772220590120,3.48360671,1922.2,1921.9,0.0011]
[1772220591720,3.48360671,1922.2,1922.0,0.0011]
[1772220597733,3.47590584,1922.2,1922.0,0.0011]
[1772220598942,2.98360476,1922.2,1922.0,0.0011]
[1772220600319,2.98360536,1922.2,1922.0,0.0011]
[1772220600714,0.50000195,1922.7,1922.0,0.49340108]
[1772220600914,2.19600195,1922.6,1922.0,0.49340108]
[1772220601153,0.99230303,1922.2,1922.0,0.0011]
[1772220601443,0.50000195,1922.0,1921.7,0.0011]
[1772220601660,0.50000195,1921.9,1921.7,0.0011]
[1772220602117,2.19600195,1922.0,1921.7,0.0011]
[1772220602540,3.49678421,1922.0,1921.7,0.0011]
[1772220604543,3.49678421,1922.0,1921.8,0.0011]
[1772220605663,0.50000195,1921.9,1921.8,0.0011]
[1772220605961,0.50000195,1921.9,1921.5,0.0011]
[1772220606270,0.49945195,1921.7,1921.5,0.0011]
[1772220607454,1.80031809,1921.8,1921.5,0.00219898]
[1772220607952,0.49945195,1921.7,1921.5,0.0011]
[1772220610448,1.696,1922.0,1921.6,0.00109885]
[1772220610667,2.99673193,1922.0,1921.6,0.00109885]
[1772220610838,0.49945195,1921.9,1921.5,0.00219882]
[1772220611950,1.30086377,1921.8,1921.5,0.00219882]
[1772220612163,1.80029535,1921.9,1921.5,0.00219882]
[1772220612367,0.49945195,1921.9,1921.5,0.00219882]
[1772220612551,1.80024984,1921.9,1921.6,0.00109879]
[1772220614167,0.49945195,1921.8,1921.5,0.0011]
[1772220615754,0.49945195,1921.7,1921.4,0.00219873]
[1772220616156,1.80045111,1921.6,1921.4,0.0011]
[1772220616476,0.49945195,1921.6,1921.2,1.26965277]
[1772220616964,0.49945195,1921.6,1921.5,0.0011]
[1772220618574,1.80045111,1921.6,1921.5,0.0011]
[1772220619650,0.49945195,1921.6,1921.5,0.0011]
[1772220621962,2.20700128,1921.7,1921.5,0.0011]
[1772220622777,0.50000128,1922.1,1921.5,0.0011]
[1772220622958,1.715,1922.0,1921.5,0.0011]
[1772220623163,0.001,1922.0,1921.6,0.73944506]
[1772220623365,0.001,1922.0,1921.5,0.0011]
[1772220625590,0.001,1922.0,1921.5,1.30216687]
[1772220625994,1.715,1922.2,1921.6,0.73944506]
[1772220626166,0.001,1922.1,1921.6,0.73944506]
[1772220626688,1.715,1922.2,1921.6,0.73944506]
[1772220626888,1.716,1922.2,1921.6,0.73944506]
[1772220627396,1.716,1922.2,1921.5,1.30216687]
[1772220627397,0.001,1922.2,1921.8,0.73944506]
[1772220627764,0.001,1922.2,1921.9,1.30079608]
[1772220632506,0.002,1922.2,1921.9,1.30079608]
[1772220634799,0.50200128,1922.2,1921.9,1.30079608]
[1772220635320,0.50200128,1922.2,1921.6,5.94340034]
[1772220635321,0.50200128,1922.2,1921.6,0.73944506]
[1772220635522,0.50100128,1922.1,1921.7,1.30093146]
[1772220640509,0.001,1922.0,1921.7,1.30093146]
[1772220640905,0.001,1922.0,1921.8,0.0011]
[1772220642717,0.50100128,1922.0,1921.8,0.0011]
[1772220644638,0.50000128,1922.0,1921.8,0.0011]
[1772220648229,0.001,1921.9,1921.8,0.0011]
[1772220653847,0.002,1921.9,1921.8,0.0011]
[1772220654045,0.50200128,1921.9,1921.8,0.0011]
[1772220654751,0.002,1921.9,1921.8,0.0011]
[1772220655143,5.20211173,1922.3,1921.8,0.0011]
[1772220655144,0.50000128,1922.4,1921.8,2.26354506]
[1772220655446,0.50000128,1922.3,1921.8,2.26354506]
[1772220656652,0.50000128,1922.3,1921.9,1.30079608]
[1772220660961,1.80053338,1922.3,1921.9,1.30079608]
[1772220661156,0.50000128,1922.2,1921.9,1.30079608]
[1772220663690,0.40036243,1922.2,1921.9,1.30079608]
[1772220663850,0.47052359,1922.5,1922.0,0.83908278]
[1772220664250,0.47052359,1922.5,1922.0,0.09963772]
[1772220665370,0.47052359,1922.5,1922.0,0.59225693]
[1772220665794,0.47052359,1922.5,1922.2,0.5922569]
[1772220665990,0.47052359,1922.7,1922.4,0.5922569]
[1772220666797,0.47152359,1922.9,1922.6,0.95333811]
[1772220668574,0.47052359,1922.8,1922.3,1.9907189]
[1772220668771,0.47052359,1922.8,1922.2,2.25393118]
[1772220669074,0.47052359,1922.8,1922.4,0.4607189]
[1772220669790,0.47052359,1922.8,1922.3,1.9907189]
[1772220670423,0.47346495,1922.7,1922.3,1.9907189]
[1772220670627,0.47346495,1922.7,1922.3,3.29124384]
[1772220671325,0.47346495,1922.7,1922.4,0.45396122]
[1772220671515,0.47446495,1922.9,1922.5,0.45396122]
[1772220672308,0.47346495,1922.8,1922.4,0.49261921]
[1772220672707,0.47346495,1922.8,1922.4,2.24697122]
[1772220674632,0.47346495,1922.8,1922.4,0.49261921]
[1772220674633,0.47346495,1922.7,1922.4,0.49261921]
[1772220675317,0.47346495,1922.7,1922.4,1.79307149]
[1772220675520,0.47346495,1922.7,1922.4,2.24703271]
[1772220676926,0.47346495,1922.7,1922.4,0.49261921]
[1772220677836,0.47446495,1922.7,1922.4,0.49261921]
[1772220678530,0.47446495,1922.7,1922.3,1.75443464]
[1772220678712,0.47446495,1922.7,1922.3,3.28843464]
[1772220680214,0.47446495,1922.7,1922.4,0.94658043]
[1772220682419,0.47446495,1922.7,1922.4,2.24700232]
[1772220685347,0.49261921,1922.6,1922.0,0.45506122]
[1772220685534,0.47346495,1922.5,1922.1,0.45396122]
[1772220685846,0.001,1922.7,1922.4,0.45396122]
[1772220686019,0.47446495,1922.7,1922.4,0.45396122]
[1772220687614,0.47346495,1922.6,1922.3,3.33407784]
[1772220687843,0.47346495,1922.6,1922.3,3.78803906]
[1772220689621,0.47346495,1922.6,1922.3,3.78809658]
[1772220690041,0.47346495,1922.6,1922.1,0.45396122]
[1772220690246,0.47346495,1922.5,1922.0,1.30177101]
[1772220690445,0.47346495,1922.5,1922.0,1.75573223]
[1772220690931,0.47346495,1922.5,1922.3,0.0011]
[1772220691330,0.001,1922.6,1922.5,0.45396122]
[1772220691534,0.001,1922.9,1922.7,0.45396122]
[1772220692650,0.001,1922.9,1922.7,0.94658043]
[1772220692854,0.001,1922.9,1922.7,0.45396122]
[1772220693536,0.001,1922.9,1922.7,2.24682248]
[1772220694353,0.001,1922.9,1922.8,0.45396122]
[1772220694648,0.001,1923.2,1922.8,0.45396122]
[1772220694955,0.001,1923.2,1923.0,0.45396122]
[1772220695538,0.001,1923.4,1923.3,0.45396122]
[1772220695833,0.001,1923.4,1923.1,2.24652627]
[1772220696159,0.001,1923.4,1923.2,0.45396122]
[1772220696655,0.001,1923.7,1923.4,0.45396122]
[1772220696824,0.001,1923.7,1923.5,0.94658043]
[1772220697025,0.001,1923.7,1923.5,0.45396122]
[1772220697351,0.47446495,1923.7,1923.3,2.00196122]
[1772220697852,1.77407295,1923.7,1923.3,2.00196122]
[1772220698257,0.47446495,1923.7,1923.3,2.00196122]
[1772220698552,0.47446495,1923.7,1923.3,3.30181016]
[1772220700338,0.47446495,1923.7,1923.3,2.84784894]
[1772220700663,0.47428698,1923.6,1923.3,1.548]
[1772220700857,0.47428698,1923.6,1923.2,1.549]
[1772220701371,0.47428698,1923.6,1923.1,3.8065415]
[1772220702444,0.47428698,1923.6,1923.2,0.46495994]
[1772220703380,0.47528698,1923.6,1923.2,0.46495994]
[1772220706469,0.47528698,1923.6,1923.2,1.76486457]
[1772220707664,0.47528698,1923.6,1923.3,0.46495994]
[1772220709071,0.47528698,1923.6,1923.3,1.76480552]
[1772220709784,1.77493966,1923.6,1923.2,0.95757915]
[1772220709973,1.77493966,1923.6,1923.2,2.25749029]
[1772220709974,0.47528698,1923.6,1923.2,2.25749029]
[1772220710278,0.47528698,1923.7,1923.3,0.46495994]
[1772220710479,0.47528698,1923.9,1923.5,0.46495994]
[1772220710674,0.47528698,1923.9,1923.7,1.29957893]
[1772220710894,0.001,1923.9,1923.7,0.46495994]
[1772220711107,0.47428698,1923.8,1923.4,0.46495994]
[1772220711248,0.47428698,1923.8,1923.2,1.554]
[1772220711577,0.47428698,1923.8,1923.2,2.51157915]
[1772220711783,0.47428698,1923.8,1923.3,0.46495994]
[1772220712986,0.47428698,1923.6,1923.2,1.76485639]
[1772220714175,0.47428698,1923.6,1923.3,0.46495994]
[1772220714874,0.47428698,1923.6,1923.4,1.29978163]
[1772220715069,0.47428698,1923.6,1923.3,0.46495994]
[1772220715271,0.47428698,1923.6,1923.3,1.76590915]
[1772220715469,1.77380523,1923.8,1923.4,0.46495994]
[1772220715780,0.47428698,1923.7,1923.4,0.46495994]
[1772220717083,0.47428698,1923.7,1923.4,1.76472257]
[1772220717979,0.47428698,1923.7,1923.4,1.29976263]
[1772220718171,0.47428698,1923.7,1923.4,0.46495994]
[1772220719984,0.47428698,1923.7,1923.4,1.76474079]
[1772220720691,0.47528698,1923.8,1923.5,0.46495994]
[1772220721070,0.47528698,1923.8,1923.3,5.20046973]
[1772220721071,1.30051202,1923.8,1923.3,0.0011]
[1772220721278,0.49261921,1923.4,1923.3,0.0011]
[1772220721568,0.47428698,1923.3,1923.0,0.0011]
[1772220721762,0.47428698,1923.0,1922.8,0.0011]
[1772220721981,0.47428698,1922.9,1922.8,0.0022]
[1772220722701,0.47428698,1922.8,1922.5,0.0011]
[1772220723078,0.47428698,1922.6,1922.3,0.0011]
[1772220723278,0.47428698,1922.6,1922.3,1.30161798]
[1772220723687,0.47428698,1922.6,1922.3,0.0011]
[1772220724605,0.47428698,1922.6,1922.3,0.46605994]
[1772220724788,1.79277962,1922.9,1922.3,0.46605994]
[1772220724789,0.47428698,1922.8,1922.3,0.46605994]
[1772220727512,0.47428698,1922.7,1922.3,1.76656674]
[1772220728608,0.47428698,1922.7,1922.3,0.46605994]
[1772220729111,0.47428698,1922.7,1922.3,0.0011]
[1772220729304,0.47428698,1922.4,1922.1,0.0011]
[1772220729476,0.47428698,1922.2,1922.1,0.0011]
[1772220731795,1.77488005,1922.2,1922.1,0.0011]
[1772220733115,0.47428698,1922.2,1922.1,0.0011]
[1772220733296,1.30057931,1922.3,1922.1,0.0011]
[1772220733611,0.46531006,1922.2,1922.1,0.0011]
[1772220735905,0.46531006,1922.4,1922.1,0.49793062]
[1772220737093,0.46531006,1922.4,1922.1,0.0011]
[1772220737821,0.46531006,1922.3,1922.1,0.0011]
[1772220737999,0.46531006,1922.0,1921.8,0.0011]
[1772220738407,1.30050581,1922.4,1922.0,0.49683062]
[1772220738408,0.46531006,1922.4,1922.0,0.49683062]
[1772220739712,1.7655885,1922.7,1922.2,0.49683062]
[1772220740010,0.46531006,1922.7,1922.2,0.49683062]
[1772220740209,1.76558223,1922.7,1922.2,0.49683062]
[1772220740411,1.76557041,1922.7,1922.2,0.49683062]
[1772220741116,0.46531006,1922.6,1922.0,0.49683062]
[1772220741289,0.46531006,1922.6,1922.1,0.49683062]
[1772220741920,0.46531006,1922.6,1922.3,0.0011]
[1772220742222,1.76563511,1922.6,1922.3,0.0011]
[1772220742425,0.46531006,1922.5,1922.3,0.0011]
[1772220743311,0.46531006,1922.5,1922.0,0.0011]
[1772220743507,0.46531006,1922.5,1922.0,1.30181779]
[1772220743816,0.46531006,1922.5,1922.0,0.0011]
[1772220744225,0.46531006,1922.3,1922.0,0.0011]
[1772220745498,0.46531006,1922.5,1922.0,0.49793062]
[1772220746728,1.30045776,1922.4,1922.0,0.49793062]
[1772220747025,0.46531006,1922.3,1922.0,0.0011]
[1772220747603,0.46531006,1922.3,1922.0,0.49793062]
[1772220750019,1.76584379,1922.3,1922.0,0.49793062]
[1772220750214,0.46531006,1922.3,1922.0,0.49793062]
[1772220750805,0.46531006,1922.3,1922.0,0.0011]
[1772220751625,0.46531006,1922.3,1922.0,0.49793062]
[1772220751812,0.46531006,1922.3,1922.0,0.0011]
[1772220752007,0.46531006,1922.2,1922.0,0.0011]
[1772220753532,0.46531006,1922.6,1922.1,0.49683062]
[1772220753837,0.46531006,1922.4,1922.0,0.49793062]
[1772220754329,0.46531006,1922.4,1922.1,0.0011]
[1772220754628,0.46531006,1922.2,1922.1,0.0011]
[1772220755830,0.46531006,1922.1,1921.8,0.0011]
[1772220756020,1.30059307,1922.2,1921.6,0.0011]
[1772220756021,0.46531006,1921.8,1921.6,0.0011]
[1772220756933,0.46531006,1921.6,1921.3,0.0011]
[1772220757928,0.46531006,1921.4,1921.1,0.0011]
[1772220758144,0.46531006,1921.5,1921.0,0.00263886]
[1772220759916,1.30113458,1921.4,1921.0,0.00263886]
[1772220760117,1.75985063,1921.4,1921.0,0.00263886]
[1772220760510,2.19793679,1921.6,1921.0,0.46951041]
[1772220760715,1.79394483,1921.6,1921.1,0.46687155]
[1772220760940,0.49293679,1921.5,1921.1,0.46687155]
[1772220761417,0.73874838,1921.4,1921.0,0.00263886]
[1772220761624,0.49293679,1921.3,1921.0,0.00263886]
[1772220762027,1.79414203,1921.3,1921.0,0.00263886]
[1772220762444,1.79403036,1921.5,1921.0,0.46951041]
[1772220764458,5.20412532,1921.6,1921.0,0.46951041]
[1772220764653,5.69706211,1921.6,1921.1,0.46687155]
[1772220765356,1.706,1921.7,1921.1,0.46687155]
[1772220765531,6.64873542,1922.4,1921.0,0.00263886]
[1772220765532,3.50059752,1922.1,1921.5,0.46687155]